fUST/lending_fUST_20260509
["ID","MTS","AMOUNT","RATE_DAILY","PERIOD"]
[421896262,1778308246000,-1000.0,0.000143,2]
[421896263,1778308246000,-1000.0,0.000143,2]
[421896265,1778308246000,-1000.0,0.000143,2]
[421896268,1778308246000,-151.0,0.000143,2]
[421896269,1778308246000,-157.06843964,0.000143,2]
[421896266,1778308246000,-771.76987118,0.000143,2]
[421896267,1778308246000,-151.0,0.000143,2]
[421896270,1778308246000,-354.64,0.00014347,2]
[421896264,1778308246000,-1000.0,0.000143,2]
[421896275,1778308246000,-375.42,0.00014347,2]
[421896276,1778308246000,-500.0,0.00014347,2]
[421896288,1778308246000,-245.9,0.00014347,2]
[421896286,1778308246000,-263.26,0.00014347,2]
[421896317,1778308246000,-500.0,0.00014351,2]
[421896277,1778308246000,-597.18,0.00014347,2]
[421896285,1778308246000,-500.0,0.00014347,2]
[421896281,1778308246000,-566.98,0.00014347,2]
[421896279,1778308246000,-352.82,0.00014347,2]
[421896289,1778308246000,-529.18,0.00014347,2]
[421896287,1778308246000,-355.8,0.00014347,2]
[421896283,1778308246000,-500.0,0.00014347,2]
[421896284,1778308246000,-500.0,0.00014347,2]
[421896301,1778308246000,-500.0,0.00014347,2]
[421896291,1778308246000,-500.0,0.00014347,2]
[421896302,1778308246000,-500.0,0.00014347,2]
[421896290,1778308246000,-275.72,0.00014347,2]
[421896323,1778308246000,-151.5,0.00014351,2]
[421896260,1778308246000,-1000.0,0.000143,2]
[421896326,1778308246000,-157.80392734,0.00014351,2]
[421896357,1778308246000,-161.874439,0.00014521,2]
[421896365,1778308246000,-500.0,0.00014543,2]
[421896363,1778308246000,-568.32241702,0.00014542,2]
[421896364,1778308246000,-237.19552421,0.00014542,2]
[421896367,1778308246000,-500.0,0.00014543,2]
[421896360,1778308246000,-500.0,0.00014542,2]
[421896369,1778308246000,-500.0,0.00014543,2]
[421896370,1778308246000,-2296.98,0.00014543,2]
[421896372,1778308246000,-500.0,0.00014543,2]
[421896371,1778308246000,-500.0,0.00014543,2]
[421896373,1778308246000,-500.0,0.00014543,2]
[421896377,1778308246000,-500.0,0.00014543,2]
[421896375,1778308246000,-500.0,0.00014543,2]
[421896379,1778308246000,-500.0,0.00014544,2]
[421896381,1778308246000,-352.5,0.00014544,2]
[421896378,1778308246000,-500.0,0.00014543,2]
[421896376,1778308246000,-500.0,0.00014543,2]
[421896380,1778308246000,-500.0,0.00014544,2]
[421896383,1778308246000,-500.0,0.00014544,2]
[421896385,1778308246000,-500.0,0.00014544,2]
[421896384,1778308246000,-500.0,0.00014544,2]
[421896382,1778308246000,-500.0,0.00014544,2]
[421896386,1778308246000,-500.0,0.00014544,2]
[421896387,1778308246000,-500.0,0.00014544,2]
[421896388,1778308246000,-500.0,0.00014544,2]
[421896391,1778308246000,-500.0,0.00014544,2]
[421896389,1778308246000,-1686.4916,0.00014544,2]
[421896390,1778308246000,-500.0,0.00014544,2]
[421896327,1778308246000,-500.0,0.00014351,2]
[421896368,1778308246000,-500.0,0.00014543,2]
[421896358,1778308246000,-182.237035,0.00014521,7]
[421896374,1778308246000,-500.0,0.00014543,2]
[421896355,1778308246000,-151.0,0.000145,2]
[421896359,1778308246000,-500.0,0.00014542,2]
[421896330,1778308246000,-500.0,0.00014351,2]
[421896332,1778308246000,-500.0,0.00014351,2]
[421896331,1778308246000,-500.0,0.00014351,2]
[421896335,1778308246000,-500.0,0.00014351,2]
[421896334,1778308246000,-500.0,0.00014351,2]
[421896341,1778308246000,-151.5,0.00014351,2]
[421896325,1778308246000,-151.5,0.00014351,2]
[421896333,1778308246000,-500.0,0.00014351,2]
[421896339,1778308246000,-488.1253878,0.00014351,2]
[421896337,1778308246000,-500.0,0.00014351,2]
[421896340,1778308246000,-500.0,0.00014351,2]
[421896338,1778308246000,-500.0,0.00014351,2]
[421896343,1778308246000,-156.92273008,0.00014351,2]
[421896353,1778308246000,-720.0,0.00014474,2]
[421896336,1778308246000,-500.0,0.00014351,2]
[421896362,1778308246000,-500.0,0.00014542,2]
[421896354,1778308246000,-172.079195,0.00014479,2]
[421896356,1778308246000,-719.04747942,0.00014518,2]
[421896361,1778308246000,-500.0,0.00014542,2]
[421896351,1778308246000,-668.65185757,0.00014408,2]
[421896352,1778308246000,-693.3919763,0.00014463,2]
[421896366,1778308246000,-500.0,0.00014543,2]
[421896350,1778308246000,-151.0,0.000144,2]
[421896348,1778308246000,-644.79446246,0.00014353,2]
[421896347,1778308246000,-151.5,0.00014351,2]
[421896346,1778308246000,-170.75707967,0.00014351,2]
[421896344,1778308246000,-500.0,0.00014351,2]
[421896345,1778308246000,-500.0,0.00014351,2]
[421896342,1778308246000,-500.0,0.00014351,2]
[421896349,1778308246000,-151.0,0.000144,2]
[421896410,1778308247000,-500.0,0.00014621,2]
[421896413,1778308247000,-773.2413689,0.00014628,2]
[421896415,1778308247000,-500.0,0.00014673,2]
[421896421,1778308247000,-160.0,0.000147,7]
[421896414,1778308247000,-387.49660287,0.00014673,2]
[421896412,1778308247000,-557.5788265,0.00014626,2]
[421896417,1778308247000,-160.0,0.00014681,2]
[421896419,1778308247000,-1644.4369335,0.000147,2]
[421896423,1778308247000,-3418.224504,0.000147,7]
[421896416,1778308247000,-161.5993154,0.00014681,2]
[421896418,1778308247000,-801.85129955,0.00014683,2]
[421896422,1778308247000,-1789.112252,0.000147,7]
[421896428,1778308247000,-209.97051486,0.00014739,2]
[421896424,1778308247000,-208.666269,0.000147,2]
[421896425,1778308247000,-793.0,0.000147,2]
[421896411,1778308247000,-461.67526834,0.00014626,2]
[421896408,1778308247000,-500.0,0.00014621,2]
[421896392,1778308247000,-500.0,0.00014546,2]
[421896401,1778308247000,-500.0,0.00014621,2]
[421896426,1778308247000,-754447.27419637,0.000147,2]
[421896393,1778308247000,-500.0,0.00014546,2]
[421896394,1778308247000,-500.0,0.00014546,2]
[421896396,1778308247000,-151.0,0.000146,2]
[421896406,1778308247000,-544.1,0.00014621,2]
[421896398,1778308247000,-500.0,0.00014621,2]
[421896395,1778308247000,-745.65223616,0.00014573,2]
[421896399,1778308247000,-500.0,0.00014621,2]
[421896397,1778308247000,-151.0,0.000146,2]
[421896400,1778308247000,-308.28,0.00014621,2]
[421896407,1778308247000,-500.0,0.00014621,2]
[421896402,1778308247000,-500.0,0.00014621,2]
[421896403,1778308247000,-594.68,0.00014621,2]
[421896405,1778308247000,-500.0,0.00014621,2]
[421896404,1778308247000,-249.32,0.00014621,2]
[421896420,1778308247000,-442.951173,0.000147,7]
[421896427,1778308247000,-831.51979763,0.00014738,2]
[421896409,1778308247000,-500.0,0.00014621,2]
[421896429,1778308247000,-341.0,0.00014775,2]
[421896443,1778308247000,-650.0,0.00014775,2]
[421896452,1778308247000,-100.50275069,0.00014775,2]
[421896454,1778308247000,-330.72335113,0.00014775,2]
[421896457,1778308247000,-650.0,0.00014775,2]
[421896453,1778308247000,-319.27664887,0.00014775,2]
[421896459,1778308247000,-463.82240233,0.00014775,2]
[421896456,1778308247000,-650.0,0.00014775,2]
[421896458,1778308247000,-186.17759767,0.00014775,2]
[421896460,1778308247000,-650.0,0.00014775,2]
[421896462,1778308247000,-456.46393648,0.00014775,2]
[421896464,1778308247000,-650.0,0.00014775,2]
[421896465,1778308247000,-650.0,0.00014775,2]
[421896461,1778308247000,-186.53791119,0.00014775,2]
[421896463,1778308247000,-6.99815233,0.00014775,2]
[421896431,1778308247000,-341.0,0.00014775,2]
[421896451,1778308247000,-549.49724931,0.00014775,2]
[421896450,1778308247000,-650.0,0.00014775,2]
[421896455,1778308247000,-650.0,0.00014775,2]
[421896448,1778308247000,-650.0,0.00014775,2]
[421896432,1778308247000,-174.03588265,0.00014775,2]
[421896430,1778308247000,-341.0,0.00014775,2]
[421896441,1778308247000,-650.0,0.00014775,2]
[421896438,1778308247000,-179.0,0.00014775,2]
[421896434,1778308247000,-650.0,0.00014775,2]
[421896439,1778308247000,-650.0,0.00014775,2]
[421896435,1778308247000,-650.0,0.00014775,2]
[421896433,1778308247000,-650.0,0.00014775,2]
[421896440,1778308247000,-181.89872525,0.00014775,2]
[421896437,1778308247000,-650.0,0.00014775,2]
[421896442,1778308247000,-650.0,0.00014775,2]
[421896449,1778308247000,-650.0,0.00014775,2]
[421896446,1778308247000,-650.0,0.00014775,2]
[421896445,1778308247000,-650.0,0.00014775,2]
[421896444,1778308247000,-650.0,0.00014775,2]
[421896447,1778308247000,-301.38225321,0.00014775,2]
[421896436,1778308247000,-179.0,0.00014775,2]
[421898548,1778309073000,558.9,0.0001917,120]
[421898560,1778309227000,-200.0,0.00012898,2]
[421898558,1778309227000,-500.0,0.00012898,2]
[421898559,1778309227000,-284.68,0.00012898,2]
[421898557,1778309227000,-500.0,0.00012898,2]
[421898556,1778309227000,-500.0,0.00012898,2]
[421898551,1778309227000,-177.0272118,0.00012564,2]
[421898554,1778309227000,-232.02,0.00012898,2]
[421898553,1778309227000,-500.0,0.00012898,2]
[421898552,1778309227000,-300.0,0.00012897,2]
[421898550,1778309227000,-5000.0,0.00012143,2]
[421898561,1778309227000,-500.0,0.00012898,2]
[421898555,1778309227000,-500.0,0.00012898,2]
[421898562,1778309227000,-609.7,0.00012898,2]
[421898564,1778309227000,-500.0,0.00012898,2]
[421898573,1778309227000,-209.72551927,0.0001317,2]
[421898566,1778309227000,-500.0,0.0001317,2]
[421898565,1778309227000,-500.0,0.00012898,2]
[421898567,1778309227000,-500.0,0.0001317,2]
[421898568,1778309227000,-500.0,0.0001317,2]
[421898569,1778309227000,-500.0,0.0001317,2]
[421898571,1778309227000,-163.46,0.0001317,2]
[421898570,1778309227000,-500.0,0.0001317,2]
[421898572,1778309227000,-500.0,0.0001317,2]
[421898574,1778309227000,-500.0,0.0001317,2]
[421898575,1778309227000,-500.0,0.0001317,2]
[421898576,1778309227000,-500.0,0.0001317,2]
[421898577,1778309227000,-500.0,0.0001317,2]
[421898563,1778309227000,-500.0,0.00012898,2]
[421898589,1778309228000,-500.0,0.00013171,2]
[421898591,1778309228000,-500.0,0.00013171,2]
[421898593,1778309228000,-500.0,0.00013171,2]
[421898578,1778309228000,-558.34,0.00013171,2]
[421898592,1778309228000,-500.0,0.00013171,2]
[421898588,1778309228000,-500.0,0.00013171,2]
[421898590,1778309228000,-500.0,0.00013171,2]
[421898587,1778309228000,-500.0,0.00013171,2]
[421898580,1778309228000,-500.0,0.00013171,2]
[421898585,1778309228000,-500.0,0.00013171,2]
[421898584,1778309228000,-1627.03,0.00013171,2]
[421898583,1778309228000,-173.366,0.00013171,2]
[421898582,1778309228000,-500.0,0.00013171,2]
[421898581,1778309228000,-500.0,0.00013171,2]
[421898579,1778309228000,-274.21010581,0.00013171,2]
[421898586,1778309228000,-500.0,0.00013171,2]
[421898594,1778309228000,-500.0,0.00013171,2]
[421898601,1778309228000,-500.0,0.00013172,2]
[421898596,1778309228000,-500.0,0.00013172,2]
[421898595,1778309228000,-500.0,0.00013171,2]
[421898613,1778309228000,-1627.03,0.00013445,2]
[421898611,1778309228000,-500.0,0.00013444,2]
[421898612,1778309228000,-554.96,0.00013445,2]
[421898609,1778309228000,-275.41605082,0.00013444,2]
[421898610,1778309228000,-500.0,0.00013444,2]
[421898608,1778309228000,-268.52771585,0.00013444,2]
[421898605,1778309228000,-500.0,0.00013444,2]
[421898607,1778309228000,-610.36,0.00013444,2]
[421898604,1778309228000,-516.56,0.00013172,2]
[421898603,1778309228000,-500.0,0.00013172,2]
[421898602,1778309228000,-640.31867078,0.00013172,2]
[421898599,1778309228000,-500.0,0.00013172,2]
[421898600,1778309228000,-290.1,0.00013172,2]
[421898598,1778309228000,-500.0,0.00013172,2]
[421898597,1778309228000,-500.0,0.00013172,2]
[421898606,1778309228000,-500.0,0.00013444,2]
[421898629,1778309229000,-1000.0,0.00013699,2]
[421898628,1778309229000,-1000.0,0.00013699,2]
[421898625,1778309229000,-500.0,0.00013446,2]
[421898627,1778309229000,-343.30919995,0.00013446,2]
[421898626,1778309229000,-500.0,0.00013446,2]
[421898624,1778309229000,-194.77161588,0.00013446,2]
[421898622,1778309229000,-500.0,0.00013445,2]
[421898620,1778309229000,-500.0,0.00013445,2]
[421898621,1778309229000,-500.0,0.00013445,2]
[421898618,1778309229000,-500.0,0.00013445,2]
[421898619,1778309229000,-500.0,0.00013445,2]
[421898616,1778309229000,-500.0,0.00013445,2]
[421898617,1778309229000,-500.0,0.00013445,2]
[421898614,1778309229000,-500.0,0.00013445,2]
[421898615,1778309229000,-500.0,0.00013445,2]
[421898623,1778309229000,-500.0,0.00013445,2]
[421898630,1778309229000,-500.0,0.00013718,2]
[421898633,1778309229000,-500.0,0.00013718,2]
[421898632,1778309229000,-500.0,0.00013718,2]
[421898649,1778309229000,-500.0,0.00013866,2]
[421898648,1778309229000,-500.0,0.00013866,2]
[421898646,1778309229000,-500.0,0.00013866,2]
[421898647,1778309229000,-500.0,0.00013866,2]
[421898645,1778309229000,-500.0,0.00013866,2]
[421898631,1778309229000,-500.0,0.00013718,2]
[421898643,1778309229000,-159.42195203,0.00013866,2]
[421898644,1778309229000,-494.36469518,0.00013866,2]
[421898641,1778309229000,-262.37409909,0.0001372,2]
[421898640,1778309229000,-500.0,0.00013719,2]
[421898639,1778309229000,-500.0,0.00013719,2]
[421898637,1778309229000,-500.0,0.00013719,2]
[421898636,1778309229000,-283.1,0.00013719,2]
[421898634,1778309229000,-1627.03,0.00013719,2]
[421898635,1778309229000,-500.0,0.00013719,2]
[421898642,1778309229000,-500.0,0.00013866,2]
[421898638,1778309229000,-500.0,0.00013719,2]
[421898651,1778309230000,-500.0,0.00013866,2]
[421898652,1778309230000,-500.0,0.00013866,2]
[421898650,1778309230000,-500.0,0.00013866,2]
[421898653,1778309230000,-500.0,0.00013866,2]
[421898656,1778309230000,-300.0,0.00013866,2]
[421898655,1778309230000,-258.15367671,0.00013866,2]
[421898654,1778309230000,-500.0,0.00013866,2]
[421898657,1778309231000,169.42537447,0.00013344,2]
[421898658,1778309241000,-1054243.74600797,0.00013867,2]
[421898659,1778309245000,371.61315694,0.000139,2]
[421898661,1778309270000,1423.65,0.00013444,2]
[421898660,1778309270000,1423.65,0.0001317,2]
[421898662,1778309271000,1423.65,0.00013718,2]
[421898663,1778309275000,41113.69083509,0.00013599,2]
[421898708,1778309431000,-1096.61,0.00012,2]
[421898710,1778309431000,-1096.61,0.00012372,2]
[421898712,1778309431000,-1093.28611972,0.00012744,2]
[421898726,1778309432000,-3.32388028,0.00012744,2]
[421898729,1778309432000,-1096.61,0.0001308,2]
[421898732,1778309432000,-500.0,0.0001317,2]
[421898735,1778309432000,-500.0,0.0001317,2]
[421898738,1778309432000,-500.0,0.0001317,2]
[421898739,1778309432000,-500.0,0.0001317,2]
[421898742,1778309432000,-500.0,0.0001317,2]
[421898750,1778309432000,-500.0,0.00013444,2]
[421898752,1778309432000,-218.32,0.00013444,2]
[421898746,1778309432000,-500.0,0.0001317,2]
[421898755,1778309432000,-500.0,0.00013444,2]
[421898756,1778309432000,-489.56,0.00013444,2]
[421898757,1778309432000,-1096.61,0.00013452,2]
[421898748,1778309432000,-500.0,0.00013444,2]
[421898759,1778309432000,-500.0,0.00013598,2]
[421898761,1778309432000,-500.0,0.00013598,2]
[421898763,1778309432000,-500.0,0.00013598,2]
[421898765,1778309432000,-500.0,0.00013598,2]
[421898766,1778309432000,-20.68390816,0.00013598,2]
[421898754,1778309432000,-500.0,0.00013444,2]
[421898813,1778309440000,-250.90596408,0.00013598,2]
[421898812,1778309440000,-185.37137846,0.00013598,2]
[421898814,1778309440000,-500.0,0.00013598,2]
[421898816,1778309440000,-70.74257968,0.00013598,2]
[421898815,1778309440000,-500.0,0.00013598,2]
[421898867,1778309443000,-578.20924308,0.00014014,2]
[421898865,1778309443000,-189.79,0.00013992,2]
[421898866,1778309443000,-419.56,0.00014,7]
[421898864,1778309443000,-500.0,0.00013992,2]
[421898861,1778309443000,-399.16,0.00013992,2]
[421898863,1778309443000,-546.42,0.00013992,2]
[421898862,1778309443000,-1423.65,0.00013992,2]
[421898860,1778309443000,-500.0,0.00013992,2]
[421898859,1778309443000,-500.0,0.00013992,2]
[421898857,1778309443000,-557.5788265,0.00013959,2]
[421898855,1778309443000,-151.54046827,0.00013904,2]
[421898856,1778309443000,-166.66666666,0.00013922,2]
[421898854,1778309443000,-162.380719,0.00013904,2]
[421898853,1778309443000,-537.6845,0.00013904,2]
[421898850,1778309443000,-300.0,0.0001387,2]
[421898851,1778309443000,-537.6845,0.00013904,2]
[421898848,1778309443000,-166.66666668,0.00013867,2]
[421898849,1778309443000,-300.0,0.0001387,2]
[421898847,1778309443000,-1096.61,0.00013824,2]
[421898846,1778309443000,-173.48666756,0.00013755,2]
[421898844,1778309443000,-500.0,0.00013718,2]
[421898845,1778309443000,-500.0,0.00013718,2]
[421898843,1778309443000,-376.1242288,0.00013718,2]
[421898842,1778309443000,-500.0,0.00013718,2]
[421898840,1778309443000,-17692.69879837,0.00013599,2]
[421898841,1778309443000,-1641193.61036654,0.00013599,2]
[421898839,1778309443000,-429.25742032,0.00013598,2]
[421898852,1778309443000,-445.202766,0.00013904,2]
[421898868,1778309443000,-168.97,0.00014024,2]
[421898858,1778309443000,-166.66666666,0.00013977,2]
[421898871,1778309443000,-621.78829552,0.00014124,2]
[421898869,1778309443000,-99820.78432976,0.00014067,2]
[421898899,1778309443000,-500.0,0.00014773,2]
[421898897,1778309443000,-500.0,0.00014773,2]
[421898895,1778309443000,-500.0,0.00014773,2]
[421898896,1778309443000,-500.0,0.00014773,2]
[421898894,1778309443000,-160.0,0.00014757,2]
[421898893,1778309443000,-161.5993154,0.00014757,2]
[421898892,1778309443000,-1754.35421121,0.000147,2]
[421898891,1778309443000,-11386.1797836,0.00014699,2]
[421898885,1778309443000,-1096.61,0.00014532,2]
[421898884,1778309443000,-6856.71,0.000145,10]
[421898888,1778309443000,-1423.65,0.0001454,2]
[421898889,1778309443000,-1002.38,0.000146,2]
[421898887,1778309443000,-500.0,0.0001454,2]
[421898890,1778309443000,-1686.4917,0.00014699,2]
[421898882,1778309443000,-277.34874377,0.00014452,2]
[421898886,1778309443000,-500.0,0.0001454,2]
[421898870,1778309443000,-599.60298507,0.00014069,2]
[421898872,1778309443000,-1096.61,0.0001416,2]
[421898873,1778309443000,-500.0,0.00014163,2]
[421898875,1778309443000,-668.65185757,0.00014234,2]
[421898877,1778309443000,-500.0,0.00014266,2]
[421898876,1778309443000,-500.0,0.00014266,2]
[421898879,1778309443000,-354.72,0.00014266,2]
[421898881,1778309443000,-636.08886901,0.00014344,2]
[421898878,1778309443000,-1423.65,0.00014266,2]
[421898898,1778309443000,-500.0,0.00014773,2]
[421898880,1778309443000,-693.3919763,0.00014289,2]
[421898883,1778309443000,-578.20924308,0.00014452,2]
[421898874,1778309443000,-644.79446246,0.00014179,2]
[421898918,1778309444000,-500.08856054,0.00014973,2]
[421898911,1778309444000,-166.0,0.00014872,2]
[421898915,1778309444000,-1096.61,0.00014904,2]
[421898914,1778309444000,-2722.70924991,0.000149,2]
[421898912,1778309444000,-164.0,0.00014872,2]
[421898913,1778309444000,-151.0,0.000149,2]
[421898916,1778309444000,-500.11117308,0.00014973,2]
[421898910,1778309444000,-650.0,0.00014872,2]
[421898903,1778309444000,-326.0,0.00014795,3]
[421898909,1778309444000,-341.0,0.00014872,2]
[421898907,1778309444000,-154.0,0.00014872,2]
[421898904,1778309444000,-500.0,0.00014814,2]
[421898906,1778309444000,-1423.65,0.00014814,2]
[421898905,1778309444000,-500.0,0.00014814,2]
[421898900,1778309444000,-500.0,0.00014773,2]
[421898902,1778309444000,-500.0,0.00014773,2]
[421898901,1778309444000,-500.0,0.00014773,2]
[421898920,1778309444000,-500.12106333,0.00014973,2]
[421898908,1778309444000,-172.0,0.00014872,2]
[421898917,1778309444000,-155.27124319,0.00014973,2]
[421898926,1778309444000,-500.12106333,0.00014973,2]
[421898922,1778309444000,-541.75575868,0.00014973,2]
[421898940,1778309444000,-7676.85178447,0.00015,2]
[421898937,1778309444000,-1686.4917,0.00014973,2]
[421898939,1778309444000,-608.45055747,0.00015,2]
[421898938,1778309444000,-241711.73454926,0.00015,2]
[421898935,1778309444000,-500.0,0.00014973,2]
[421898936,1778309444000,-500.0,0.00014973,2]
[421898934,1778309444000,-411.13268014,0.00014973,2]
[421898933,1778309444000,-500.11188582,0.00014973,2]
[421898919,1778309444000,-500.14705991,0.00014973,2]
[421898932,1778309444000,-500.0,0.00014973,2]
[421898931,1778309444000,-500.0,0.00014973,2]
[421898928,1778309444000,-508.56132316,0.00014973,2]
[421898923,1778309444000,-500.0,0.00014973,2]
[421898927,1778309444000,-500.08795639,0.00014973,2]
[421898925,1778309444000,-500.09885089,0.00014973,2]
[421898924,1778309444000,-500.0,0.00014973,2]
[421898929,1778309444000,-534.76226926,0.00014973,2]
[421898921,1778309444000,-188.20897727,0.00014973,2]
[421898930,1778309444000,-500.0,0.00014973,2]
[421898976,1778309446000,-1169.56947414,0.000147,2]
[421898979,1778309446000,-619.93428,0.00015,2]
[421898978,1778309446000,-16669.19031277,0.00015,2]
[421898977,1778309446000,-7013.6502016,0.00015,2]
[421898990,1778310072000,503.0,0.00019178,120]
[421898989,1778310072000,-416.36346568,0.00012275,2]
[421899048,1778310632000,-4988.65728038,0.00011556,2]
[421899626,1778310645000,-1096.66,0.00012,2]
[421899634,1778310645000,-160.0,0.000145,2]
[421899632,1778310645000,-300.0,0.0001443,2]
[421899628,1778310645000,-1000.0,0.00013699,2]
[421899627,1778310645000,-271.07537068,0.00012889,2]
[421899636,1778310645000,-500.0,0.00014538,2]
[421899635,1778310645000,-400.46,0.00014538,2]
[421899625,1778310645000,-176.8649984,0.00011732,2]
[421899623,1778310645000,-11.34271962,0.00011556,2]
[421899629,1778310645000,-1000.0,0.00013699,2]
[421899631,1778310645000,-894.2765342,0.0001381,2]
[421899630,1778310645000,-208.70069812,0.00013732,2]
[421899624,1778310645000,-211.30210208,0.00011673,2]
[421899637,1778310645000,-160.0,0.00014611,2]
[421899646,1778310645000,-500.0,0.00014693,2]
[421899642,1778310645000,-500.0,0.00014693,2]
[421899650,1778310645000,-356.97101218,0.00014799,2]
[421899643,1778310645000,-500.0,0.00014693,2]
[421899648,1778310645000,-160.0,0.0001475,2]
[421899644,1778310645000,-500.0,0.00014693,2]
[421899633,1778310645000,-4617.41523911,0.00014431,21]
[421899645,1778310645000,-584.99,0.00014693,2]
[421899647,1778310645000,-500.0,0.00014693,2]
[421899641,1778310645000,-500.0,0.00014693,2]
[421899640,1778310645000,-181.94,0.00014632,2]
[421899639,1778310645000,-161.5993154,0.00014611,2]
[421899649,1778310645000,-309.0,0.00014767,3]
[421899656,1778310646000,-1008.42,0.00014799,2]
[421899658,1778310646000,-4124.90267386,0.000148,2]
[421899657,1778310646000,-765.95607952,0.000148,2]
[421899659,1778310646000,-3376.39403996,0.000148,2]
[421899660,1778310646000,-2611.95669799,0.000148,2]
[421899655,1778310646000,-143.02898782,0.00014799,2]
[421899736,1778311832000,-156.0,0.00013699,2]
[421899738,1778311832000,-1000.0,0.00013699,2]
[421899734,1778311832000,-300.0,0.00013698,2]
[421899732,1778311832000,-860.0,0.00013697,2]
[421899722,1778311832000,-5000.0,0.00011761,2]
[421899726,1778311832000,-167.07741502,0.0001188,2]
[421899728,1778311832000,-198.69285924,0.0001188,2]
[421899724,1778311832000,-182.7267334,0.00011821,2]
[421899742,1778311832000,-215.61754542,0.00013821,2]
[421899730,1778311832000,-1300.55033444,0.00012125,2]
[421899740,1778311832000,-1000.0,0.00013699,2]
[421899762,1778311832000,-1603.75740069,0.000145,2]
[421899746,1778311832000,-3107.4846299,0.0001444,2]
[421899769,1778311832000,-5772.74469948,0.000145,2]
[421899771,1778311832000,-282.43889699,0.000145,2]
[421899744,1778311832000,-459.72933564,0.000144,2]
[421899760,1778311832000,-1533.84480062,0.000145,2]
[421899756,1778311832000,-632.66974105,0.000145,2]
[421899758,1778311832000,-1378.24194921,0.000145,2]
[421899753,1778311832000,-500.0,0.00014499,2]
[421899767,1778311832000,-384.15552416,0.000145,2]
[421899764,1778311832000,-18370.91592225,0.000145,2]
[421899751,1778311832000,-173.36732948,0.0001444,2]
[421899754,1778311832000,-500.0,0.00014499,2]
[421899813,1778311838000,-18256.09418755,0.000145,2]
[421899811,1778311838000,-41825.75168331,0.000145,2]
[421899812,1778311838000,-851.36943634,0.000145,2]
[421899832,1778311841000,-845.15949572,0.000145,2]
[421899830,1778311841000,-152.0,0.00014,7]
[421899831,1778311841000,-2258.40144417,0.000145,2]
[421899858,1778311844000,-1559.0,0.000145,2]
[421899859,1778311844000,-22920.87812968,0.000145,2]
[421899866,1778311846000,-6466.62404422,0.000145,2]
[421899865,1778311846000,-949.33714309,0.000145,2]
[421899867,1778311847000,-36691.4079085,0.000145,2]
[421899874,1778312146000,176.0191352,6.648e-05,2]
[421900768,1778313001000,4446.151,0.00019178,120]
[421900790,1778313032000,-5000.0,0.00011983,2]
[421900794,1778313032000,-257.13767941,0.00013699,2]
[421900793,1778313032000,-255.0,0.00013671,3]
[421900792,1778313032000,-194.11195632,0.00012319,2]
[421900795,1778313032000,-1000.0,0.00013699,2]
[421900796,1778313032000,-193.4861331,0.00013699,2]
[421900798,1778313032000,-325.2088791,0.00013835,2]
[421900800,1778313032000,-152.0,0.00013996,7]
[421900799,1778313032000,-152.0,0.00013996,7]
[421900802,1778313032000,-358.14379178,0.00014,7]
[421900801,1778313032000,-224.12,0.00014,7]